Cogmind - Beta 14 @@@ ROGUE MODE // 2025.01.19 @ 17:11:15 Player: abnormality Result: Destroyed by Y-45 Defender with Beam Rifle Performance ------------- Evolutions (1) 500 Regions Visited (4) 800 Robots Destroyed (13) 65 Value Destroyed (125) 125 Prototype IDs (2) 40 Alien Tech Used (0) 0 Bonus (0) 0 TOTAL SCORE: 1530 Bonus ------- None Cogmind --------- Core Integrity 0/400 Matter 297/300 Energy 99/100 System Corruption 12% Temperature Cool (9) Movement Core (50) Location -9/Storage Parts ------- > --- POWER (1) -------- (None) > --- PROPULSION (3) --- (None) > --- UTILITY (3) ------ (None) > --- WEAPON (2) ------- (None) > --- INVENTORY (5) ---- Light Ion Engine Light Assault Rifle Peak State ------------ > --- POWER ------------ Improved Ion Engine > --- PROPULSION ------- Flight Unit Flight Unit Flight Unit > --- UTILITY ---------- Weight Redist. System Seismic Detector > --- WEAPON ----------- Light Assault Rifle Light Assault Rifle > --- INVENTORY -------- Light Ion Engine Flight Unit Flight Unit Assault Rifle [Rating: 10] Favorites ----------- Power Light Ion Engine Engine Light Ion Engine Propulsion Flight Unit Leg Aluminum Leg Flight Unit Flight Unit Utility Seismic Detector Device Seismic Detector Storage Small Storage Unit Weapon Light Assault Rifle Ballistic Gun Light Assault Rifle Build | -11 -10 -10 -9 -9 ------- Run | Yrd Mat Min Mat Sto Slots Evolved 2 | . . . 2 . Power . | . . . . . Propulsion 1 | . . . 1 . Utility 1 | . . . 1 . Weapon . | . . . . . Parts Attached 27 | 7 7 3 5 5 Power 6 | 1 3 1 1 . Engine 6 | 1 3 1 1 . Core . | . . . . . Reactor . | . . . . . Propulsion 11 | 2 2 2 2 3 Treads . | . . . . . Leg 2 | 2 . . . . Wheel . | . . . . . Hover . | . . . . . Flight 9 | . 2 2 2 3 Utility 4 | 2 . . 2 . Device 3 | 1 . . 2 . Storage 1 | 1 . . . . Processor . | . . . . . Hackware . | . . . . . Protection . | . . . . . Artifact . | . . . . . Weapon 6 | 2 2 . . 2 Energy Gun . | . . . . . Energy Cannon . | . . . . . Ballistic Gun 6 | 2 2 . . 2 Ballistic Cannon . | . . . . . Launcher . | . . . . . Special Weapon . | . . . . . Impact Weapon . | . . . . . Slashing Weapon . | . . . . . Piercing Weapon . | . . . . . Special Melee Weapon . | . . . . . Unidentified Prototypes . | . . . . . Parts Lost 14 | . . 2 2 10 Power 2 | . . 1 . 1 Propulsion 8 | . . 1 2 5 Utility 2 | . . . . 2 Weapon 2 | . . . . 2 Highest Loss Streak 9 | . . 2 2 9 To Critical Strikes 1 | . . . . 1 Average Slot Usage (%) 78 | . 97 81 77 49 Engine 11 | . 13 12 11 6 Leg 6 | . 24 . . . Flight 22 | . 3 26 33 18 Device 12 | . 14 14 11 11 Storage 3 | . 12 . . . Ballistic Gun 22 | . 28 28 22 12 Peak Build Rating 10 | 7 7 6 10 10 Average Rating 6 | 5 6 5 7 5 On Entrance 5 | . 7 6 6 9 Naked Turns 66 | . . . . 66 Heaviest Build 15 | 15 15 8 10 11 Greatest Support 20 | 20 20 8 18 18 Greatest Overweight (x) 1 | 1 . . . . Average Overweight (x) . | . . . . . Largest Inventory Capacity 8 | 8 8 5 5 5 Average Capacity 5 | 7 7 5 5 5 Most Carried 6 | 5 6 5 5 4 Average Carried 3 | 2 2 4 4 2 Final Capacity 8 | 8 5 5 5 5 Final Carried 5 | 2 5 5 3 2 Class Distribution -------------------- 61% | Scavenger-Mutant 38% | Mutant Dominant Class ---------------- Mutant | -10/Materials Scavenger-Mutant | -10/Mines Scavenger-Mutant | -9/Materials Mutant | -9/Storage Resources | -11 -10 -10 -9 -9 ----------- Run | Yrd Mat Min Mat Sto Matter Collected 538 | 312 89 40 . 97 Remotely . | . . . . . Salvage Created 260 | 110 89 40 . 21 Parts 25 | 6 11 5 . 3 Haulers Intercepted . | . . . . . Recyclers Shooed . | . . . . . Parts Field Recycled . | . . . . . Retrieved Matter . | . . . . . Parts Self-Destructed . | . . . . . Prevented . | . . . . . Kills | -11 -10 -10 -9 -9 ------- Run | Yrd Mat Min Mat Sto Combat Hostiles Destroyed 9 | . 6 3 . . Guns 9 | . 6 3 . . Classes Destroyed 4 | 2 1 . . 1 Builder 1 | . . . . 1 Tunneler 2 | 2 . . . . Recycler 1 | 1 . . . . Swarmer 9 | . 6 3 . . Best Kill Streak 4 | 3 4 3 . 1 Combat Bots Only 4 | . 4 3 . . Max Kills in Single Turn 1 | 1 1 1 . 1 Gunslinging . | . . . . . Exploded . | . . . . . Melee . | . . . . . Uniques/NPCs Destroyed . | . . . . . Combat | -11 -10 -10 -9 -9 -------- Run | Yrd Mat Min Mat Sto Hostile Shots Fired 204 | . 37 28 33 106 Missed 80 | . 10 7 19 44 Damage Taken 1220 | . 199 167 136 718 Core 505 | . 46 46 34 379 Absorbed by Shields . | . . . . . Core Remaining (%) 81 | 100 . 63 . . Volleys Fired 38 | 7 17 11 2 1 Largest 2 | 2 2 2 2 1 Hottest 40 | 40 40 40 40 20 Shots Fired 75 | 14 34 22 4 1 Gun 75 | 14 34 22 4 1 Cannon . | . . . . . Launcher . | . . . . . Special . | . . . . . Kinetic 75 | 14 34 22 4 1 Thermal . | . . . . . Explosive . | . . . . . Electromagnetic . | . . . . . Robot Hit Streak 5 | 3 3 3 5 . Robot Miss Streak 4 | 2 4 3 1 . Penetration Max . | . . . . . Secondary Targets . | . . . . . Shots Hit Robots 38 | 7 16 12 3 . Core Hits 20 | 4 7 6 1 2 Critical Kills . | . . . . . Critical Parts Destroyed . | . . . . . Critical Strikes . | . . . . . Melee Attacks . | . . . . . Impact . | . . . . . Slashing . | . . . . . Piercing . | . . . . . Sneak Attacks . | . . . . . Combat Hostiles . | . . . . . Follow-up Attacks . | . . . . . Damage Inflicted 443 | 92 172 97 23 59 Guns 384 | 92 172 97 23 . Cannons . | . . . . . Explosions . | . . . . . Melee . | . . . . . Ramming 59 | . . . . 59 Kinetic 384 | 92 172 97 23 . Thermal . | . . . . . Explosive . | . . . . . Electromagnetic . | . . . . . Impact . | . . . . . Slashing . | . . . . . Piercing . | . . . . . Highest Corruption 12 | . . . . 12 Average Corruption 11 | . . . . 11 Corruption Purged . | . . . . . Corruption Blocked . | . . . . . Effects 5 | . . . . 5 Matter Fused 1 | . . . . 1 Data Loss (minor) 1 | . . . . 1 Misdirections 3 | . . . . 3 Overload Shots . | . . . . . Overflow Damage . | . . . . . Projectiles . | . . . . . Explosions . | . . . . . Melee . | . . . . . Knockbacks . | . . . . . Impact . | . . . . . Kinetic . | . . . . . Secondary . | . . . . . Self-Inflicted Damage 28 | . . . . 28 Shots . | . . . . . Rammed 7 | . . . . 7 Targets Rammed 7 | . . . . 7 Kicked . | . . . . . Crushed . | . . . . . Highest Temperature 13 | . 8 8 3 13 Average Temperature 4 | . 4 4 3 8 Received Heat Transfer 237 | . . . 24 213 Siege Activations . | . . . . . Robots Corrupted . | . . . . . Combat Hostiles . | . . . . . Parts Fried . | . . . . . Impact Corruptions . | . . . . . Robots Melted . | . . . . . Combat Hostiles . | . . . . . Parts Melted . | . . . . . Heat Transferred . | . . . . . Parts Sabotaged . | . . . . . Parts Stolen . | . . . . . Parts Stripped . | . . . . . Power Chain Reactions . | . . . . . Alert | -11 -10 -10 -9 -9 ------- Run | Yrd Mat Min Mat Sto Peak Influence 214 | 15 214 133 57 200 Initial 83 | . 9 83 51 10 Average 57 | 4 47 113 46 80 Maximum Alert Level 1 | . 1 . . 1 Low Security (%) 99 | 100 96 100 100 99 Level 1 . | . 3 . . . Level 2 . | . . . . . Level 3 . | . . . . . Level 4 . | . . . . . Level 5 . | . . . . . High Security . | . . . . . Max Security . | . . . . . Squads Dispatched 3 | . . . 2 1 Investigation 2 | . . . 1 1 Extermination . | . . . . . Reinforcement 1 | . . . 1 . Assault . | . . . . . Garrison . | . . . . . Intercept . | . . . . . Searches Triggered . | . . . . . Construction Impeded . | . . . . . Haulers Reinforced . | . . . . . Active Scanning Responses . | . . . . . Cargo Convoy Interrupts . | . . . . . Stealth | -11 -10 -10 -9 -9 --------- Run | Yrd Mat Min Mat Sto Distress Signals 6 | . . . 5 1 Communications Jammed . | . . . . . Distress Signals . | . . . . . Times Spotted 55 | . 8 3 20 24 Peak Tracking Total 19 | . 4 3 19 15 Tactical Retreats 4 | . . . . 4 Traps | -11 -10 -10 -9 -9 ------- Run | Yrd Mat Min Mat Sto Traps Triggered 1 | . 1 . . . Indirectly . | . . . . . Trap Hack Attempts . | . . . . . Triggered . | . . . . . Disarmed . | . . . . . Reprogrammed . | . . . . . Reused . | . . . . . Traps Extracted . | . . . . . Installed . | . . . . . Triggered . | . . . . . Machines | -11 -10 -10 -9 -9 ---------- Run | Yrd Mat Min Mat Sto Machines Disabled 1 | . 1 . . . Max in Single Turn 1 | . 1 . . . Garrison Access 1 | . . . . 1 Machines Repaired . | . . . . . Machines Dismantled . | . . . . . Machines Sabotaged . | . . . . . Overloaded Fab Kills . | . . . . . Hacking | -11 -10 -10 -9 -9 --------- Run | Yrd Mat Min Mat Sto Machines Accessed 6 | . 1 . 2 3 Terminals 5 | . 1 . 2 2 Fabricators . | . . . . . Repair Stations . | . . . . . Recycling Units . | . . . . . Scanalyzers . | . . . . . Garrison Access 1 | . . . . 1 Total Hacks 15 | . 2 . 5 8 Successful 7 | . 2 . 1 4 Failed 8 | . . . 4 4 Catastrophic 1 | . . . . 1 Database Lockouts . | . . . . . Manual . | . . . . . Terminals 12 | . 2 . 5 5 Fabricators . | . . . . . Repair Stations . | . . . . . Recycling Units . | . . . . . Scanalyzers . | . . . . . Garrison Access 3 | . . . . 3 Terminal Hacks 6 | . 2 . 1 3 Robot Analysis 1 | . . . . 1 Prototype ID Bank 1 | . 1 . . . Recycling Unit Index 1 | . . . 1 . Alert Level 3 | . 1 . . 2 Fabricator Hacks . | . . . . . Repair Station Hacks . | . . . . . Recycling Unit Hacks . | . . . . . Scanalyzer . | . . . . . Garrison Access Hacks 1 | . . . . 1 Seal Access 1 | . . . . 1 Unauthorized Hacks . | . . . . . Terminals . | . . . . . Fabricators . | . . . . . Repair Stations . | . . . . . Recycling Units . | . . . . . Scanalyzers . | . . . . . Garrison Access . | . . . . . Data Cores Recovered . | . . . . . Used . | . . . . . Hacking Detections 4 | . . . 1 3 Full Trace Events 2 | . . . 1 1 Feedback Events . | . . . . . Feedback Blocked . | . . . . . Robot Schematics Acquired . | . . . . . Robots Built . | . . . . . Authchips . | . . . . . Time . | . . . . . Total Robot Build Rating . | . . . . . Part Schematics Acquired . | . . . . . Parts Built . | . . . . . Authchips . | . . . . . Time . | . . . . . Total Part Build Rating . | . . . . . Parts Repaired . | . . . . . Time . | . . . . . Parts Recycled . | . . . . . Recycled Matter . | . . . . . Retrieved Matter . | . . . . . Retrieved Components . | . . . . . Parts Scanalyzed . | . . . . . Part Schematics Acquired . | . . . . . Parts Damaged . | . . . . . Bothacking | -11 -10 -10 -9 -9 ------------ Run | Yrd Mat Min Mat Sto Used RIF Installer . | . . . . . Robots Hacked . | . . . . . Non-combat . | . . . . . Combat . | . . . . . Robot Hacks Applied . | . . . . . Relay Couplers Released . | . . . . . Fabnet Peak Effective % . | . . . . . Robots Rewired . | . . . . . Allies Hacked . | . . . . . Hacks Repelled . | . . . . . Allies | -11 -10 -10 -9 -9 -------- Run | Yrd Mat Min Mat Sto Total Allies . | . . . . . Largest Group . | . . . . . Highest-Rated Group . | . . . . . Highest-Rated Ally . | . . . . . Total Orders . | . . . . . Ally Attacks . | . . . . . Total Damage . | . . . . . Kills . | . . . . . Allies Corrupted . | . . . . . Allies Melted . | . . . . . Intel | -11 -10 -10 -9 -9 ------- Run | Yrd Mat Min Mat Sto Robot Analysis Total 1 | . . . . 1 Derelict Logs Recovered 3 | . . 3 . . Drone Launches . | . . . . . Drone Recoveries . | . . . . . Exploration | -11 -10 -10 -9 -9 ------------- Run | Yrd Mat Min Mat Sto Turns Passed 1244 | 97 286 175 508 178 Spaces Moved 1165 | 49 211 372 192 341 Core 132 | 8 . . . 124 Treads . | . . . . . Legs 209 | 41 168 . . . Wheels . | . . . . . Hover . | . . . . . Flight 824 | . 43 372 192 217 Fastest Speed 34 | 50 37 37 34 34 Average Speed 53 | 124 103 37 34 40 Slowest Speed 190 | 190 120 40 37 50 Overloaded Moves . | . . . . . Propulsion Burnouts . | . . . . . Robots Hopped 15 | . . 3 8 4 Cave-ins Triggered . | . . . . . Exploration Rate (%) 41 | 3 35 84 23 60 Regions Visited 4 Branch Regions 2 Pre-discovered Areas 3 | . . 2 . 1 Known Exits Taken . | . . . . . Unknown Exits Taken 4 | 1 1 1 1 . Scrap Searched 1 | . . 1 . . Spaces Dug . | . . . . . Terrain Destroyed . | . . . . . Melee . | . . . . . Projectile . | . . . . . AOE . | . . . . . Terrain Rammed . | . . . . . Walls Destroyed . | . . . . . Machines Disabled . | . . . . . Actions | -11 -10 -10 -9 -9 --------- Run | Yrd Mat Min Mat Sto Total 1708 | 71 251 388 624 374 Wait 454 | . . 2 430 22 Move 1135 | 48 210 365 178 334 Hop 11 | . . 3 5 3 Pick Up 26 | 9 10 3 2 2 Fast Attach . | . . . . . Attach 19 | 7 3 2 4 3 Detach 1 | . . . 1 . Swap 8 | . 4 1 1 2 Drop 9 | . 7 1 1 . Fire 38 | 7 17 11 2 1 Melee . | . . . . . Ram 7 | . . . . 7 Kick . | . . . . . Crush . | . . . . . Escape Stasis . | . . . . . Rewire . | . . . . . Trap . | . . . . . Miscellaneous . | . . . . . Route ------- -11/Scrapyard -10/Materials -10/Mines (discovered 2 exits: *Mat / Exi) -9/Materials -9/Storage History --------- Turn | Location | Event 19 | -11/Scrapyard | Discovered new exit (range 16) 98 | -11/Scrapyard | Entered Materials 311 | -10/Materials | Build established: Mutant 355 | -10/Materials | Discovered new exit (range 12) 384 | -10/Materials | Entered Mines 387 | -10/Mines | Learned location of Storage (-9) 395 | -10/Mines | Learned Materials security intel 503 | -10/Mines | Identified exit to Exiles 505 | -10/Mines | Received a Rocket Launcher from a helpful Derelict 556 | -10/Mines | Discovered new exit (range 7) 559 | -10/Mines | Entered Materials 559 | -9/Materials | Evolved 2 slots: Propulsion x1, Utility x1 775 | -9/Materials | Build established: Scavenger-Mutant 1062 | -9/Materials | Discovered new exit (range 13) 1067 | -9/Materials | Entered Storage 1174 | -9/Storage | Learned location of Armory (-3) 1180 | -9/Storage | System corruption reached 10% 1193 | -9/Storage | Core integrity fell below 50% 1210 | -9/Storage | Lost 9 parts (1p4n2u2w) 1219 | -9/Storage | Core integrity fell below 20% 1245 | -9/Storage | Destroyed by Y-45 Defender with Beam Rifle Last Messages --------------- 01177_ Weight Redist. System destroyed. 01177_ System corrupted by crushing effect (+5). 01177_ System corrupted by crushing effect (+4). 01178_ Acquired 77 matter. 01179_ Slammed into B-36 Bruiser. 01179_ Destabilizing: System corrupted (+2). 01179_ Critical hit (Smash). 01179_ Assault Rifle destroyed. 01179_ System corrupted by crushing effect (+1). 01180_ System corrupted: Component data lost. 01180_ Slammed into B-36 Bruiser. 01180_ Destabilizing: Core damaged (-16). 01181_ Acquired 14 matter. 01188_ Slammed into A-02 Transporter. 01205_ System corrupted: Matter fused (-10). 01206_ Slammed into K-01 Serf. 01213_ K-01 Serf collects debris. 01221_ Slammed into A-02 Transporter. 01223_ A-02 Transporter sends out distress signal. 01235_ Critical hit (Burn: +37). Map ----- +----------------------------------------------------+ | ?????????# ??????????????????????# % | | ?????????# ??????????????????????# | | ????????## ##????????????????????# | | ????????# #??????????????###???# | | ????????# ??????????????? ???# / | | ????????+ T ??????????????? ???# | | ????????# ??????????????? ???# | | ????????? ???????????????# #???##+# | | ?????????# ###########?????# #???# | | ?????????# # ####### ##### | | ?????????# # + | | ?????????# # ####+#########/# | | ?????????#^ # """"" #?? ???????# | | ?????????# / """"" #?? ???????# " | | ?????????# # """"" #? ??????# " | | ?????????# # #? ??????# " | | ?????????# # # #?????# | | ?????????# # ###"Y"### #?????# " | | ?????????# ###?#"""#?########?????# " | | ?????????# #???#####??????????????? " | | ??? ""?# #??????????????????????? | | # """# #???????????????????????# | | # """# #?????????????????????#### | | # Y/ #?????????????????????# | | # """# ##########????????????# | | # "??# @ +????????????# | | # """# ######## #????????????# | | # + #?????????????????????# | | ?????######+##?????????????????????# | | ?????????? ??????????????????????# | | ?????????? "??????????????????????# | | ????????? ""?????????????????????#### | | ????????? ""????????????????????????? | | ????????!! ???????????????????????? | | ????????!! ???????????????????????? | | ??????? ! ????????????????????????? | | ??????? "?????????????????????????? | | ??????#######?????????????????????????? | | ??????????????????????????????????????? | | ??????????????????????????????????????? | | ??????????????????????????????????????? | | ??????????????????????????????????????? | | | | | | | | | | | | | | | | | +----------------------------------------------------+ Best States ------------- Heat Dissipation 28 Energy Generation 12 Energy Capacity 265 Matter Stores 300 Matter Capacity 300 Sight Range 16 Terrain Scan Density 10 Additional Mass Support 6 Evasion (%) 63 Item Schematics ----------------- None Robot Schematics ------------------ None Fabricated ------------ Nothing Alien Tech Used ----------------- None Achievements -------------- None Challenges ------------ None Game ------ Seed MinesnifferControlDeflector Manual? 0 Play Time 00:15:28 Cumulative 22.4 hours Start 2025.01.19 @ 14:42:13 End 2025.01.19 @ 17:11:15 Sessions 1 Manual Loads 0 Difficulty Rogue Special Mode None Game No. 95 Rogue 95 Adventurer 0 Explorer 0 Win Type - Total 0 Types 0/0/0/0/0/0/0/0/0 Lore% 19 Gallery% 24 Achievement% 25 Wizard Run 0 Options --------- Layout 0 ASCII 0 Keyboard 0 Movement Mouse Keybinds 0 Fullscreen 1 Font 18/SmallcapsGlow Map View 38x25 Zoom Use 100% Tactical HUD 1 Map Filters NONE Filters NONE Steam 1 RUN: 182abe91-ce3b-437f-ac51-c5054580d0ed